fUST/lending_fUST_20250719
["ID","MTS","AMOUNT","RATE_DAILY","PERIOD"]
[373221302,1752911447221,-460.0,0.00018516,2]
[373221303,1752911447231,-460.0,0.00018516,2]
[373221304,1752911447240,-460.0,0.00018516,2]
[373221305,1752911447250,-460.0,0.00018516,2]
[373221306,1752911447260,-431.4586869,0.00018516,2]
[373221307,1752911447271,-460.0,0.00018516,2]
[373221308,1752911447281,-460.0,0.00018516,2]
[373221309,1752911447291,-460.0,0.00018516,2]
[373221310,1752911447301,-524.53,0.00018516,2]
[373221311,1752911447310,-460.0,0.00018516,2]
[373221312,1752911447320,-1114.02,0.00018516,2]
[373221313,1752911447330,-460.0,0.00018516,2]
[373221314,1752911447339,-460.0,0.00018516,2]
[373221315,1752911447349,-460.0,0.00018516,2]
[373221316,1752911447359,-460.0,0.00018516,2]
[373221317,1752911447368,-460.0,0.00018516,2]
[373221318,1752911447378,-1333.58,0.00018516,2]
[373221319,1752911447388,-422.66257374,0.00018516,2]
[373221320,1752911447398,-781.21,0.00018516,2]
[373221321,1752911447408,-460.0,0.00018516,2]
[373221322,1752911447419,-750.03,0.00018516,2]
[373221323,1752911447428,-460.0,0.00018516,2]
[373221324,1752911447438,-865.2,0.00018516,2]
[373221325,1752911447449,-460.0,0.00018516,2]
[373221326,1752911447459,-582.8,0.00018516,2]
[373221327,1752911447469,-465.02,0.00018516,2]
[373221328,1752911447479,-460.0,0.00018517,2]
[373221329,1752911447489,-460.0,0.00018518,2]
[373221330,1752911447499,-460.0,0.00018518,2]
[373221331,1752911447509,-4841.51248947,0.00018624,2]
[373221332,1752911447519,-1500.0,0.00018653,2]
[373221333,1752911447528,-151.0,0.000187,2]
[373221334,1752911447538,-151.0,0.000187,2]
[373221335,1752911447548,-460.0,0.00018788,2]
[373221336,1752911447557,-460.0,0.00018789,2]
[373221337,1752911447567,-1993.92,0.00018789,2]
[373221338,1752911447577,-460.0,0.00018789,2]
[373221339,1752911447587,-460.0,0.00018789,2]
[373221340,1752911447598,-1236.73,0.00018789,2]
[373221341,1752911447609,-1305.08,0.00018789,2]
[373221342,1752911447619,-475.64,0.00018789,2]
[373221343,1752911447630,-460.0,0.00018789,2]
[373221344,1752911447641,-460.0,0.00018789,2]
[373221345,1752911447650,-523.1,0.00018789,2]
[373221346,1752911447660,-460.0,0.00018789,2]
[373221347,1752911447671,-460.0,0.00018789,2]
[373221348,1752911447681,-460.0,0.00018789,2]
[373221349,1752911447690,-1546.09,0.00018789,2]
[373221350,1752911447700,-4334.04,0.00018789,2]
[373221351,1752911447710,-460.0,0.00018789,2]
[373221352,1752911447720,-728.86,0.00018789,2]
[373221353,1752911447730,-460.0,0.00018789,2]
[373221354,1752911447740,-2066.13,0.00018789,2]
[373221355,1752911447750,-2512.47,0.00018789,2]
[373221356,1752911447759,-2254.93,0.00018789,2]
[373221357,1752911447770,-460.0,0.00018789,2]
[373221358,1752911447780,-588.71,0.00018789,2]
[373221359,1752911447790,-460.0,0.00018789,2]
[373221360,1752911447800,-460.0,0.0001879,2]
[373221361,1752911447812,-460.0,0.0001879,2]
[373221362,1752911447821,-460.0,0.0001879,2]
[373221363,1752911447831,-460.0,0.0001879,2]
[373221364,1752911447841,-460.0,0.0001879,2]
[373221365,1752911447850,-460.0,0.0001879,2]
[373221366,1752911447860,-586.56849972,0.0001879,2]
[373221367,1752911447870,-461.69,0.0001879,2]
[373221368,1752911447880,-460.0,0.0001879,2]
[373221369,1752911447889,-460.0,0.0001879,2]
[373221370,1752911447899,-460.0,0.0001879,2]
[373221371,1752911447909,-460.0,0.0001879,2]
[373221372,1752911447919,-460.0,0.0001879,2]
[373221373,1752911447929,-524.53,0.0001879,2]
[373221374,1752911447942,-460.0,0.0001879,2]
[373221375,1752911447952,-1114.02,0.0001879,2]
[373221376,1752911447962,-460.0,0.0001879,2]
[373221377,1752911447972,-460.0,0.0001879,2]
[373221378,1752911447982,-460.0,0.0001879,2]
[373221379,1752911447991,-460.0,0.0001879,2]
[373221380,1752911448003,-460.0,0.0001879,2]
[373221381,1752911448013,-1333.58,0.0001879,2]
[373221382,1752911448023,-781.21,0.0001879,2]
[373221383,1752911448033,-460.0,0.0001879,2]
[373221384,1752911448044,-750.03,0.0001879,2]
[373221385,1752911448053,-460.0,0.0001879,2]
[373221386,1752911448063,-865.2,0.0001879,2]
[373221387,1752911448073,-460.0,0.0001879,2]
[373221388,1752911448083,-582.8,0.0001879,2]
[373221389,1752911448093,-465.02,0.0001879,2]
[373221390,1752911448103,-460.0,0.00018791,2]
[373221391,1752911448112,-460.0,0.00018792,2]
[373221392,1752911448122,-460.0,0.00018792,2]
[373221393,1752911448132,-151.0,0.000188,2]
[373221394,1752911448141,-4841.51248947,0.00018866,2]
[373221395,1752911448150,-1451.75235127,0.000189,2]
[373221396,1752911448159,-160.0,0.0001891,2]
[373221397,1752911448169,-151.0,0.00019,2]
[373221398,1752911448179,-151.0,0.00019,2]
[373221399,1752911448189,-460.0,0.00019063,2]
[373221400,1752911448200,-1993.92,0.00019063,2]
[373221401,1752911448210,-460.0,0.00019063,2]
[373221402,1752911448220,-460.0,0.00019063,2]
[373221403,1752911448229,-1236.73,0.00019063,2]
[373221404,1752911448239,-1305.08,0.00019063,2]
[373221405,1752911448249,-475.64,0.00019063,2]
[373221406,1752911448259,-460.0,0.00019063,2]
[373221407,1752911448268,-460.0,0.00019063,2]
[373221408,1752911448278,-523.1,0.00019063,2]
[373221409,1752911448288,-460.0,0.00019063,2]
[373221410,1752911448298,-460.0,0.00019063,2]
[373221411,1752911448307,-460.0,0.00019063,2]
[373221412,1752911448316,-1546.09,0.00019063,2]
[373221413,1752911448326,-4334.04,0.00019063,2]
[373221414,1752911448336,-460.0,0.00019063,2]
[373221415,1752911448345,-728.86,0.00019063,2]
[373221416,1752911448354,-460.0,0.00019063,2]
[373221417,1752911448364,-2066.13,0.00019063,2]
[373221418,1752911448374,-2512.47,0.00019063,2]
[373221419,1752911448384,-2254.93,0.00019063,2]
[373221420,1752911448394,-460.0,0.00019063,2]
[373221421,1752911448404,-588.71,0.00019063,2]
[373221422,1752911448414,-460.0,0.00019063,2]
[373221423,1752911448424,-460.0,0.00019064,2]
[373221424,1752911448434,-460.0,0.00019064,2]
[373221425,1752911448443,-165.24546731,0.00019064,2]
[373221426,1752911448453,-460.0,0.00019064,2]
[373221427,1752911448463,-460.0,0.00019064,2]
[373221428,1752911448473,-565.34227026,0.00019064,2]
[373221429,1752911448483,-460.0,0.00019064,2]
[373221430,1752911448493,-460.0,0.00019064,2]
[373221431,1752911448503,-460.0,0.00019064,2]
[373221432,1752911448513,-460.0,0.00019064,2]
[373221433,1752911448522,-460.0,0.00019064,2]
[373221434,1752911448531,-524.53,0.00019064,2]
[373221435,1752911448541,-460.0,0.00019064,2]
[373221436,1752911448551,-1114.02,0.00019064,2]
[373221437,1752911448560,-460.0,0.00019064,2]
[373221438,1752911448570,-460.0,0.00019064,2]
[373221439,1752911448580,-460.0,0.00019064,2]
[373221440,1752911448590,-460.0,0.00019064,2]
[373221441,1752911448600,-460.0,0.00019064,2]
[373221442,1752911448610,-1333.58,0.00019064,2]
[373221443,1752911448620,-781.21,0.00019064,2]
[373221444,1752911448630,-460.0,0.00019064,2]
[373221445,1752911448640,-750.03,0.00019064,2]
[373221446,1752911448651,-460.0,0.00019064,2]
[373221447,1752911448661,-865.2,0.00019064,2]
[373221448,1752911448670,-460.0,0.00019064,2]
[373221449,1752911448680,-582.8,0.00019064,2]
[373221450,1752911448689,-465.02,0.00019064,2]
[373221451,1752911448699,-460.0,0.00019065,2]
[373221452,1752911448709,-460.0,0.00019066,2]
[373221453,1752911448720,-275.37675995,0.00019066,2]
[373221454,1752911448730,-151.0,0.000191,2]
[373221455,1752911448740,-4841.51248947,0.00019107,2]
[373221456,1752911448749,-500.0,0.00019171,2]
[373221457,1752911448758,-1317.6789749,0.00019171,2]
[373221458,1752911448768,-226.51647418,0.00019171,2]
[373221459,1752911448777,-1317.6789749,0.00019171,2]
[373221460,1752911448787,-1317.6789749,0.00019171,2]
[373221461,1752911448796,-1317.6789749,0.00019171,2]
[373221462,1752911448805,-1317.6789749,0.00019171,2]
[373221463,1752911448815,-1317.6789749,0.00019171,2]
[373221464,1752911448825,-1317.6789749,0.00019171,2]
[373221465,1752911448834,-9373.32703121,0.00019172,2]
[373221466,1752911448843,-500.0,0.00019178,2]
[373221467,1752911448853,-339.34202948,0.00019178,2]
[373221468,1752911448862,-5000.0,0.00019178,2]
[373221469,1752911448871,-5000.0,0.00019178,2]
[373221470,1752911448881,-666.0,0.00019178,2]
[373221471,1752911448890,-433.46784,0.00019178,2]
[373221472,1752911448899,-53988.8746643,0.00019178,2]
[373221473,1752911448910,-151.0,0.000192,2]
[373221474,1752911448919,-2005.7834431,0.00019201,2]
[373221475,1752911448930,-151.0,0.000193,2]
[373221476,1752911448940,-151.0,0.000193,2]
[373221477,1752911448950,-151.0,0.00019329,2]
[373221478,1752911448960,-151.0,0.00019329,2]
[373221479,1752911448970,-151.0,0.00019329,2]
[373221480,1752911448979,-151.0,0.00019329,2]
[373221481,1752911448989,-151.0,0.00019329,2]
[373221482,1752911449000,-151.0,0.00019329,2]
[373221483,1752911449011,-100000.0,0.00019329,2]
[373221484,1752911449021,-460.0,0.00019337,2]
[373221485,1752911449031,-1993.92,0.00019337,2]
[373221486,1752911449041,-460.0,0.00019337,2]
[373221487,1752911449051,-1236.73,0.00019337,2]
[373221488,1752911449060,-1305.08,0.00019337,2]
[373221489,1752911449070,-475.64,0.00019337,2]
[373221490,1752911449081,-460.0,0.00019337,2]
[373221491,1752911449091,-460.0,0.00019337,2]
[373221492,1752911449100,-523.1,0.00019337,2]
[373221493,1752911449110,-460.0,0.00019337,2]
[373221494,1752911449120,-460.0,0.00019337,2]
[373221495,1752911449129,-460.0,0.00019337,2]
[373221496,1752911449139,-1546.09,0.00019337,2]
[373221497,1752911449148,-4334.04,0.00019337,2]
[373221498,1752911449158,-460.0,0.00019337,2]
[373221499,1752911449167,-728.86,0.00019337,2]
[373221500,1752911449208,-460.0,0.00019337,2]
[373221501,1752911449218,-2066.13,0.00019337,2]
[373221502,1752911449228,-2512.47,0.00019337,2]
[373221503,1752911449237,-2254.93,0.00019337,2]
[373221504,1752911449247,-460.0,0.00019337,2]
[373221505,1752911449256,-588.71,0.00019337,2]
[373221506,1752911449266,-460.0,0.00019337,2]
[373221507,1752911449276,-460.0,0.00019338,2]
[373221508,1752911449285,-548.07,0.00019338,2]
[373221509,1752911449295,-460.0,0.00019338,2]
[373221510,1752911449304,-460.0,0.00019338,2]
[373221511,1752911449314,-460.0,0.00019338,2]
[373221512,1752911449324,-460.0,0.00019338,2]
[373221513,1752911449334,-460.0,0.00019338,2]
[373221514,1752911449344,-460.0,0.00019338,2]
[373221515,1752911449354,-460.0,0.00019338,2]
[373221516,1752911449364,-524.53,0.00019338,2]
[373221517,1752911449374,-460.0,0.00019338,2]
[373221518,1752911449384,-1114.02,0.00019338,2]
[373221519,1752911449394,-460.0,0.00019338,2]
[373221520,1752911449403,-460.0,0.00019338,2]
[373221521,1752911449413,-151.282927,0.00019338,2]
[373221522,1752911449423,-460.0,0.00019338,2]
[373221523,1752911449432,-460.0,0.00019338,2]
[373221524,1752911449443,-460.0,0.00019338,2]
[373221525,1752911449453,-1333.58,0.00019338,2]
[373221526,1752911449463,-153.378373,0.00019338,2]
[373221527,1752911449473,-151.0,0.00019338,2]
[373221528,1752911449482,-781.21,0.00019338,2]
[373221529,1752911449492,-170.698303,0.00019338,2]
[373221530,1752911449501,-460.0,0.00019338,2]
[373221531,1752911449510,-750.03,0.00019338,2]
[373221532,1752911449520,-460.0,0.00019338,2]
[373221533,1752911449529,-151.0,0.00019338,2]
[373221534,1752911449538,-865.2,0.00019338,2]
[373221535,1752911449548,-460.0,0.00019338,2]
[373221536,1752911449557,-582.8,0.00019338,2]
[373221537,1752911449566,-151.0,0.00019338,2]
[373221538,1752911449576,-152.737409,0.00019338,2]
[373221539,1752911449586,-465.02,0.00019338,2]
[373221540,1752911449595,-460.0,0.00019339,2]
[373221541,1752911449604,-460.0,0.0001934,2]
[373221542,1752911449613,-4841.51248947,0.00019348,2]
[373221543,1752911449623,-900.0,0.00019389,2]
[373221544,1752911449632,-260.0,0.00019457,2]
[373221545,1752911449641,-47956.5651239,0.0001949,2]
[373221546,1752911449650,-151.0,0.0001949,2]
[373221547,1752911449660,-200.919079,0.0001949,2]
[373221548,1752911449669,-200.919079,0.0001949,2]
[373221549,1752911449679,-217.471641,0.0001949,2]
[373221550,1752911449688,-217.471641,0.0001949,2]
[373221551,1752911449698,-151.0,0.0001949,2]
[373221552,1752911449708,-151.0,0.0001949,2]
[373221553,1752911449718,-151.0,0.0001949,2]
[373221554,1752911449727,-151.0,0.0001949,2]
[373221555,1752911449736,-225.659454,0.0001949,2]
[373221556,1752911449745,-225.659454,0.0001949,2]
[373221557,1752911449755,-151.490521,0.0001949,2]
[373221558,1752911449764,-494.690919,0.0001949,2]
[373221559,1752911449774,-494.690919,0.0001949,2]
[373221560,1752911449785,-151.0,0.0001949,2]
[373221561,1752911449795,-151.0,0.0001949,2]
[373221562,1752911449805,-151.0,0.0001949,2]
[373221563,1752911449816,-151.0,0.0001949,2]
[373221564,1752911449825,-433.318745,0.0001949,2]
[373221565,1752911449835,-433.318745,0.0001949,2]
[373221566,1752911449844,-151.0,0.0001949,2]
[373221567,1752911449854,-151.0,0.0001949,2]
[373221568,1752911449866,-152.06639,0.0001949,2]
[373221569,1752911449877,-151.0,0.0001949,2]
[373221570,1752911449887,-151.0,0.0001949,2]
[373221571,1752911449898,-162.071409,0.0001949,2]
[373221572,1752911449910,-467.049052,0.0001949,2]
[373221573,1752911449920,-151.0,0.0001949,2]
[373221574,1752911449930,-467.049052,0.0001949,2]
[373221575,1752911449940,-151.0,0.0001949,2]
[373221576,1752911449951,-151.0,0.0001949,2]
[373221577,1752911449961,-151.0,0.0001949,2]
[373221578,1752911449971,-1501.87284,0.0001949,2]
[373221579,1752911449982,-309.301731,0.0001949,2]
[373221580,1752911449993,-309.301731,0.0001949,2]
[373221581,1752911450006,-1501.87284,0.0001949,2]
[373221582,1752911450017,-283.875209,0.00019524,2]
[373221583,1752911450028,-250.0,0.00019532,2]
[373221584,1752911450037,-301.290918,0.00019555,2]
[373221585,1752911450049,-152.405434,0.00019555,2]
[373221586,1752911450059,-4841.51248947,0.0001959,2]
[373221587,1752911450070,-151.0,0.000196,2]
[373221588,1752911450081,-460.0,0.00019611,2]
[373221589,1752911450092,-1993.92,0.00019611,2]
[373221590,1752911450103,-460.0,0.00019611,2]
[373221591,1752911450115,-1236.73,0.00019611,2]
[373221592,1752911450124,-1305.08,0.00019611,2]
[373221593,1752911450135,-475.64,0.00019611,2]
[373221594,1752911450146,-460.0,0.00019611,2]
[373221595,1752911450157,-460.0,0.00019611,2]
[373221596,1752911450168,-523.1,0.00019611,2]
[373221597,1752911450178,-460.0,0.00019611,2]
[373221598,1752911450189,-460.0,0.00019611,2]
[373221599,1752911450199,-460.0,0.00019611,2]
[373221600,1752911450210,-1546.09,0.00019611,2]
[373221601,1752911450219,-4334.04,0.00019611,2]
[373221602,1752911450229,-460.0,0.00019611,2]
[373221603,1752911450239,-728.86,0.00019611,2]
[373221604,1752911450248,-460.0,0.00019611,2]
[373221605,1752911450258,-2066.13,0.00019611,2]
[373221606,1752911450268,-2512.47,0.00019611,2]
[373221607,1752911450278,-2254.93,0.00019611,2]
[373221608,1752911450288,-460.0,0.00019611,2]
[373221609,1752911450299,-588.71,0.00019611,2]
[373221610,1752911450309,-460.0,0.00019611,2]
[373221611,1752911450318,-460.0,0.00019612,2]
[373221612,1752911450329,-520.3,0.00019612,2]
[373221613,1752911450338,-460.0,0.00019612,2]
[373221614,1752911450348,-34.00398031,0.00019612,2]
[373221615,1752911450500,-309.56092365,0.00019612,2]
[373221616,1752911450512,-116.43509604,0.00019612,2]
[373221617,1752911450523,-460.0,0.00019612,2]
[373221618,1752911450533,-460.0,0.00019612,2]
[373221619,1752911450543,-158.78860557,0.00019612,2]
[373221620,1752911450552,-157.92059579,0.00019612,2]
[373221621,1752911450564,-366.60940421,0.00019612,2]
[373221622,1752911450576,-460.0,0.00019612,2]
[373221623,1752911450586,-1114.02,0.00019612,2]
[373221624,1752911450596,-460.0,0.00019612,2]
[373221625,1752911450606,-266.80732914,0.00019612,2]
[373221626,1752911450618,-460.0,0.00019612,2]
[373221627,1752911450629,-451.23972503,0.00019612,2]
[373221628,1752911450640,-460.0,0.00019612,2]
[373221629,1752911450651,-1333.58,0.00019612,2]
[373221630,1752911450661,-646.1644464,0.00019612,2]
[373221631,1752911450780,-460.0,0.00016597,2]
[373221632,1752911450791,-460.0,0.00016871,2]
[373221633,1752911450802,-910.07,0.00018789,2]
[373221634,1752911450812,-910.07,0.00019063,2]
[373221635,1752911450823,-19.89945047,0.00019337,2]
[373221636,1752911450835,-741.53047909,0.00019337,2]
[373221637,1752911450847,-148.64007044,0.00019337,2]
[373221638,1752911450857,-346.26205776,0.00019611,2]
[373221639,1752911450869,-563.80794224,0.00019611,2]
[373221640,1752911450879,-116.92927428,0.00019612,2]
[373221641,1752911450970,-460.0,0.00016597,2]
[373221642,1752911450981,-18.11627932,0.00019612,2]
[373221643,1752911450991,-460.0,0.00019612,2]
[373221644,1752911451002,-750.03,0.00019612,2]
[373221645,1752911451015,-460.0,0.00019612,2]
[373221646,1752911451024,-865.2,0.00019612,2]
[373221647,1752911451034,-460.0,0.00019612,2]
[373221648,1752911451044,-582.8,0.00019612,2]
[373221649,1752911451055,-465.02,0.00019612,2]
[373221650,1752911451065,-460.0,0.00019613,2]
[373221651,1752911451076,-460.0,0.00019614,2]
[373221652,1752911451085,-151.0,0.00019614,2]
[373221653,1752911451096,-151.0,0.00019614,2]
[373221654,1752911451106,-218.333665,0.00019614,2]
[373221655,1752911451115,-151.0,0.00019616,2]
[373221656,1752911451125,-151.0,0.00019616,2]
[373221657,1752911451134,-256.600099,0.00019616,2]
[373221658,1752911451144,-151.0,0.00019616,2]
[373221659,1752911451154,-256.600099,0.00019616,2]
[373221660,1752911451170,-151.0,0.00019616,2]
[373221661,1752911451180,-273.821254,0.00019616,2]
[373221662,1752911451190,-151.0,0.00019616,2]
[373221663,1752911451201,-345.293553,0.00019616,2]
[373221664,1752911451210,-345.293553,0.00019616,2]
[373221665,1752911451220,-287.511666,0.00019616,2]
[373221666,1752911451229,-287.511666,0.00019616,2]
[373221667,1752911451240,-151.0,0.00019616,2]
[373221668,1752911451250,-2351.0,0.00019813,2]
[373221669,1752911451260,-587.0,0.00019814,2]
[373221670,1752911451270,-4841.51248947,0.00019831,2]
[373221671,1752911451280,-460.0,0.00019885,2]
[373221672,1752911451290,-1993.92,0.00019885,2]
[373221673,1752911451300,-460.0,0.00019885,2]
[373221674,1752911451310,-1236.73,0.00019885,2]
[373221675,1752911451320,-1305.08,0.00019885,2]
[373221676,1752911451331,-475.64,0.00019885,2]
[373221677,1752911451341,-460.0,0.00019885,2]
[373221678,1752911451351,-460.0,0.00019885,2]
[373221679,1752911451361,-523.1,0.00019885,2]
[373221680,1752911451371,-460.0,0.00019885,2]
[373221681,1752911451381,-460.0,0.00019885,2]
[373221682,1752911451391,-460.0,0.00019885,2]
[373221683,1752911451402,-1546.09,0.00019885,2]
[373221684,1752911451412,-4334.04,0.00019885,2]
[373221685,1752911451422,-460.0,0.00019885,2]
[373221686,1752911451432,-728.86,0.00019885,2]
[373221687,1752911451443,-460.0,0.00019885,2]
[373221688,1752911451453,-2066.13,0.00019885,2]
[373221689,1752911451463,-2512.47,0.00019885,2]
[373221690,1752911451474,-2254.93,0.00019885,2]
[373221691,1752911451484,-460.0,0.00019885,2]
[373221692,1752911451495,-588.71,0.00019885,2]
[373221693,1752911451506,-586.62,0.00019885,2]
[373221694,1752911451516,-910.07,0.00019885,2]
[373221695,1752911451526,-460.0,0.00019886,2]
[373221696,1752911451536,-460.0,0.00019886,2]
[373221697,1752911451547,-460.0,0.00019886,2]
[373221698,1752911451557,-460.0,0.00019886,2]
[373221699,1752911451567,-524.53,0.00019886,2]
[373221700,1752911451577,-460.0,0.00019886,2]
[373221701,1752911451587,-1114.02,0.00019886,2]
[373221702,1752911451597,-460.0,0.00019886,2]
[373221703,1752911451607,-460.0,0.00019886,2]
[373221704,1752911451617,-460.0,0.00019886,2]
[373221705,1752911451627,-1333.58,0.00019886,2]
[373221706,1752911451638,-781.21,0.00019886,2]
[373221707,1752911451648,-460.0,0.00019886,2]
[373221708,1752911451658,-750.03,0.00019886,2]
[373221709,1752911451668,-460.0,0.00019886,2]
[373221710,1752911451679,-865.2,0.00019886,2]
[373221711,1752911451688,-460.0,0.00019886,2]
[373221712,1752911451699,-582.8,0.00019886,2]
[373221713,1752911451710,-465.02,0.00019886,2]
[373221714,1752911451720,-460.0,0.00019887,2]
[373221715,1752911451730,-460.0,0.00019888,2]
[373221716,1752911451740,-151.818264,0.0001989,2]
[373221717,1752911451751,-151.0,0.0001989,2]
[373221718,1752911451762,-4510.51146148,0.0002,5]
[373221719,1752911451772,-360.0,0.00020005,2]
[373221720,1752911451782,-517.294,0.0002001,2]
[373221721,1752911451792,-178.58204602,0.0002001,2]
[373221722,1752911451931,-1690.0,0.00020012,2]
[373221723,1752911451943,-4841.51248947,0.00020072,2]
[373221724,1752911451953,-500.0,0.00020142,2]
[373221725,1752911451962,-500.0,0.00020142,2]
[373221726,1752911451972,-460.0,0.00020159,2]
[373221727,1752911451982,-1993.92,0.00020159,2]
[373221728,1752911451992,-460.0,0.00020159,2]
[373221729,1752911452002,-1236.73,0.00020159,2]
[373221730,1752911452015,-1305.08,0.00020159,2]
[373221731,1752911452025,-475.64,0.00020159,2]
[373221732,1752911452036,-460.0,0.00020159,2]
[373221733,1752911452047,-460.0,0.00020159,2]
[373221734,1752911452056,-523.1,0.00020159,2]
[373221735,1752911452065,-460.0,0.00020159,2]
[373221736,1752911452074,-460.0,0.00020159,2]
[373221737,1752911452084,-460.0,0.00020159,2]
[373221738,1752911452095,-1546.09,0.00020159,2]
[373221739,1752911452105,-4334.04,0.00020159,2]
[373221740,1752911452114,-460.0,0.00020159,2]
[373221741,1752911452123,-151.0,0.00020159,2]
[373221742,1752911452133,-728.86,0.00020159,2]
[373221743,1752911452143,-151.0,0.00020159,2]
[373221744,1752911452153,-161.67766685,0.00020159,2]
[373221745,1752911452163,-2066.13,0.00020159,2]
[373221746,1752911452172,-151.0,0.00020159,2]
[373221747,1752911452182,-151.0,0.00020159,2]
[373221748,1752911452191,-151.0,0.00020159,2]
[373221749,1752911452202,-2512.47,0.00020159,2]
[373221750,1752911452212,-2254.93,0.00020159,2]
[373221751,1752911452221,-460.0,0.00020159,2]
[373221752,1752911452231,-151.0,0.00020159,2]
[373221753,1752911452241,-588.71,0.00020159,2]
[373221754,1752911452250,-910.07,0.00020159,2]
[373221755,1752911452260,-460.0,0.0002016,2]
[373221756,1752911452270,-460.0,0.0002016,2]
[373221757,1752911452280,-460.0,0.0002016,2]
[373221758,1752911452290,-460.0,0.0002016,2]
[373221759,1752911452299,-524.53,0.0002016,2]
[373221760,1752911452308,-460.0,0.0002016,2]
[373221761,1752911452319,-1114.02,0.0002016,2]
[373221762,1752911452338,-460.0,0.0002016,2]
[373221763,1752911452354,-460.0,0.0002016,2]
[373221764,1752911452364,-460.0,0.0002016,2]
[373221765,1752911452374,-1333.58,0.0002016,2]
[373221766,1752911452383,-781.21,0.0002016,2]
[373221767,1752911452393,-460.0,0.0002016,2]
[373221768,1752911452403,-750.03,0.0002016,2]
[373221769,1752911452413,-460.0,0.0002016,2]
[373221770,1752911452423,-865.2,0.0002016,2]
[373221771,1752911452433,-460.0,0.0002016,2]
[373221772,1752911452442,-582.8,0.0002016,2]
[373221773,1752911452453,-465.02,0.0002016,2]
[373221774,1752911452462,-460.0,0.00020161,2]
[373221775,1752911452472,-460.0,0.00020162,2]
[373221776,1752911452483,-500.0,0.00020168,2]
[373221777,1752911452493,-512.18850797,0.00020174,2]
[373221778,1752911452503,-501.60468577,0.00020174,2]
[373221779,1752911452513,-500.0,0.00020174,2]
[373221780,1752911452522,-427.850722,0.00020187,2]
[373221781,1752911452532,-500.0,0.0002019,2]
[373221782,1752911452542,-500.0,0.0002022,2]
[373221783,1752911452552,-500.0,0.0002022,2]
[373221784,1752911452561,-500.0,0.0002022,2]
[373221785,1752911452571,-500.0,0.0002022,2]
[373221786,1752911452580,-500.0,0.0002022,2]
[373221787,1752911452589,-500.0,0.0002022,2]
[373221788,1752911452599,-503.46920702,0.0002022,2]
[373221789,1752911452608,-500.0,0.0002022,2]
[373221790,1752911452617,-500.0,0.0002022,2]
[373221791,1752911452627,-503.61159332,0.0002022,2]
[373221792,1752911452637,-501.01501956,0.0002022,2]
[373221793,1752911452646,-500.0,0.0002022,2]
[373221794,1752911452656,-207.4,0.00020299,2]
[373221795,1752911452665,-1702.53897483,0.00020299,2]
[373221796,1752911452914,-229.2491685,0.00016596,2]
[373221797,1752911452924,-588.5,0.00016597,2]
[373221798,1752911452936,-2099.10302517,0.00020299,2]
[373221799,1752911452946,-151.0,0.00020299,2]
[373221800,1752911452956,-151.0,0.00020299,2]
[373221801,1752911452965,-151.0,0.00020299,2]